fUST/lending_fUST_20250116
["ID","MTS","AMOUNT","RATE_DAILY","PERIOD"]
[349166296,1737001855865,-934.91,0.00019863,3]
[349166297,1737001855874,-500.0,0.00019863,3]
[349166298,1737001855884,-837.74,0.00019863,3]
[349166299,1737001855893,-772.74,0.00019863,3]
[349166300,1737001855902,-500.0,0.00019863,3]
[349166301,1737001855911,-500.0,0.00019863,3]
[349166302,1737001855920,-720.89,0.00019863,3]
[349166303,1737001855929,-500.0,0.00019863,3]
[349166304,1737001855938,-500.0,0.00019863,3]
[349166305,1737001855950,-500.0,0.00019863,3]
[349166306,1737001855960,-500.0,0.00019863,3]
[349166307,1737001855969,-595.49,0.00019863,3]
[349166308,1737001855979,-500.0,0.00019863,3]
[349166309,1737001855989,-690.6,0.00019863,3]
[349166310,1737001855998,-1118.48,0.00019863,3]
[349166311,1737001856008,-500.0,0.00019863,3]
[349166312,1737001856017,-500.0,0.00019863,3]
[349166313,1737001856028,-1198.05,0.00019863,3]
[349166314,1737001856038,-500.0,0.00019863,3]
[349166315,1737001856048,-919.52,0.00019863,3]
[349166316,1737001856058,-1537.57,0.00019863,3]
[349166317,1737001856067,-500.0,0.00019863,3]
[349166318,1737001856077,-500.0,0.00019863,3]
[349166319,1737001856086,-808.29,0.00019863,3]
[349166320,1737001856096,-500.0,0.00019863,3]
[349166321,1737001856105,-500.0,0.00019863,3]
[349166322,1737001856115,-1435.89,0.00019863,3]
[349166323,1737001856124,-500.0,0.00019863,3]
[349166324,1737001856133,-500.0,0.00019863,3]
[349166325,1737001856143,-500.0,0.00019863,3]
[349166326,1737001856152,-787.89,0.00019863,3]
[349166327,1737001856161,-500.0,0.00019863,9]
[349166328,1737001856171,-667.18,0.00019863,3]
[349166329,1737001856180,-632.25,0.00019863,3]
[349166330,1737001856189,-500.0,0.00019863,3]
[349166331,1737001856199,-500.0,0.00019863,3]
[349166332,1737001856208,-500.0,0.00019863,3]
[349166333,1737001856218,-567.06,0.00019863,3]
[349166334,1737001856227,-500.0,0.00019863,3]
[349166335,1737001856236,-766.32,0.00019863,3]
[349166336,1737001856245,-500.0,0.00019863,3]
[349166337,1737001856254,-555.3,0.00019863,3]
[349166338,1737001856264,-562.37,0.00019863,3]
[349166339,1737001856274,-500.0,0.00019863,3]
[349166340,1737001856283,-810.03,0.00019863,3]
[349166341,1737001856292,-984.74,0.00019863,3]
[349166342,1737001856301,-500.0,0.00019863,3]
[349166343,1737001856310,-1676.86,0.00019863,3]
[349166344,1737001856319,-500.0,0.00019863,3]
[349166345,1737001856328,-517.0,0.00019863,3]
[349166346,1737001856338,-500.0,0.00019863,3]
[349166347,1737001856347,-500.0,0.00019863,3]
[349166348,1737001856357,-649.0,0.00019863,3]
[349166349,1737001856367,-745.32,0.00019863,3]
[349166350,1737001856376,-500.0,0.00019863,3]
[349166351,1737001856385,-1421.18,0.00019863,3]
[349166352,1737001856394,-918.6,0.00019863,3]
[349166353,1737001856403,-624.49,0.00019863,3]
[349166354,1737001856412,-500.0,0.00019863,3]
[349166355,1737001856421,-500.0,0.00019863,3]
[349166356,1737001856431,-520.23,0.00019863,3]
[349166357,1737001856440,-500.0,0.00019863,3]
[349166358,1737001856449,-527.17,0.00019863,3]
[349166359,1737001856459,-500.0,0.00019863,3]
[349166360,1737001856468,-502.05097557,0.00019863,3]
[349166361,1737001856478,-500.0,0.00019863,3]
[349166362,1737001856487,-500.0,0.00019863,3]
[349166363,1737001856497,-500.0,0.00019863,3]
[349166364,1737001856507,-500.0,0.00019863,3]
[349166365,1737001856517,-500.0,0.00019863,3]
[349166366,1737001856526,-500.0,0.00019863,3]
[349166367,1737001856536,-500.0,0.00019863,3]
[349166368,1737001856546,-500.0,0.00019863,3]
[349166369,1737001856555,-500.0,0.00019863,3]
[349166370,1737001856565,-343.92807643,0.00019863,3]
[349166371,1737001856575,-5786.45,0.00019863,3]
[349166372,1737001856584,-500.0,0.00019863,3]
[349166373,1737001856594,-1438.8,0.00019863,2]
[349166374,1737001856603,-2433.3,0.00019863,3]
[349166375,1737001856614,-500.0,0.00019863,3]
[349166376,1737001856623,-500.0,0.00019863,3]
[349166377,1737001856632,-1252.63,0.00019863,3]
[349166378,1737001856642,-500.0,0.00019863,3]
[349166379,1737001856651,-221.35850335,0.00019863,3]
[349166380,1737001856661,-500.0,0.00019863,3]
[349166381,1737001856670,-544.82,0.00019863,3]
[349166382,1737001856679,-593.24,0.00019863,3]
[349166383,1737001856689,-35155.74,0.00019863,3]
[349166384,1737001856698,-500.0,0.00019863,3]
[349166385,1737001856707,-500.0,0.00019863,3]
[349166386,1737001856716,-500.0,0.00019863,3]
[349166387,1737001856725,-1886.71,0.00019863,3]
[349166388,1737001856735,-500.0,0.00019863,3]
[349166389,1737001856744,-500.0,0.00019863,3]
[349166390,1737001856753,-11268.26,0.00019863,3]
[349166391,1737001856763,-500.0,0.00019863,3]
[349166392,1737001856772,-635.76,0.00019863,3]
[349166393,1737001856781,-500.0,0.00019863,3]
[349166394,1737001856791,-1022.52,0.00019863,3]
[349166395,1737001856800,-4060.76,0.00019863,3]
[349166396,1737001856810,-1351.46,0.00019863,3]
[349166397,1737001856821,-4785.32,0.00019863,3]
[349166398,1737001856829,-2473.45,0.00019863,3]
[349166399,1737001856838,-715.82,0.00019863,3]
[349166400,1737001856847,-500.0,0.00019863,3]
[349166401,1737001856856,-607.13,0.00019863,3]
[349166402,1737001856865,-500.0,0.00019863,3]
[349166403,1737001856875,-12523.28,0.00019863,3]
[349166404,1737001856887,-1984.62,0.00019863,3]
[349166405,1737001856901,-963.62,0.00019863,3]
[349166406,1737001856913,-892.15,0.00019863,3]
[349166407,1737001856926,-500.0,0.00019863,3]
[349166408,1737001856943,-500.0,0.00019863,3]
[349166409,1737001856957,-500.0,0.00019863,3]
[349166410,1737001856967,-500.0,0.00019863,3]
[349166411,1737001856977,-647.9,0.00019863,3]
[349166412,1737001856988,-541.82375487,0.00019863,3]
[349166413,1737001857002,-3506.68,0.00019863,3]
[349166414,1737001857011,-818.98,0.00019863,3]
[349166415,1737001857021,-500.0,0.00019863,3]
[349166416,1737001857126,-500.0,0.00019863,3]
[349166417,1737001857136,-438.62214584,0.00019863,3]
[349166418,1737001857146,-500.0,0.00019863,3]
[349166419,1737001857156,-500.0,0.00019863,3]
[349166420,1737001857166,-857.27,0.00019863,3]
[349166421,1737001857176,-1327.41,0.00019863,3]
[349166422,1737001857185,-500.0,0.00019863,3]
[349166423,1737001857195,-500.0,0.00019863,3]
[349166424,1737001857204,-3902.93,0.00019863,3]
[349166425,1737001857214,-1619.25,0.00019863,3]
[349166426,1737001857223,-4746.35,0.00019863,3]
[349166427,1737001857233,-1358.67,0.00019863,3]
[349166428,1737001857243,-500.0,0.00019863,3]
[349166429,1737001857252,-1970.53,0.00019863,3]
[349166430,1737001857261,-666.58,0.00019863,3]
[349166431,1737001857271,-500.0,0.00019863,3]
[349166432,1737001857280,-42697.79,0.00019863,3]
[349166433,1737001857290,-912.58,0.00019863,3]
[349166434,1737001857299,-2076.66,0.00019863,3]
[349166435,1737001857309,-500.0,0.00019863,3]
[349166436,1737001857318,-500.0,0.00019863,3]
[349166437,1737001857327,-16668.92,0.00019863,3]
[349166438,1737001857337,-1552.92,0.00019863,3]
[349166439,1737001857347,-500.0,0.00019863,3]
[349166440,1737001857356,-1075.61,0.00019863,3]
[349166441,1737001857367,-500.0,0.00019863,3]
[349166442,1737001857377,-2143.15,0.00019863,3]
[349166443,1737001857386,-500.0,0.00019863,3]
[349166444,1737001857395,-1602.06,0.00019863,3]
[349166445,1737001857405,-500.0,0.00019863,3]
[349166446,1737001857414,-500.0,0.00019863,3]
[349166447,1737001857424,-2674.39,0.00019863,3]
[349166448,1737001857433,-579.28,0.00019863,3]
[349166449,1737001857442,-1592.26,0.00019863,3]
[349166450,1737001857452,-2649.35,0.00019863,3]
[349166451,1737001857461,-500.0,0.00019863,3]
[349166452,1737001857471,-309.74472172,0.00019863,3]
[349166453,1737001857480,-633.01,0.00019863,3]
[349166454,1737001857489,-3137.47,0.00019863,3]
[349166455,1737001857499,-500.0,0.00019863,3]
[349166456,1737001857508,-533.16,0.00019863,3]
[349166457,1737001857518,-500.0,0.00019873,2]
[349166458,1737001857527,-500.70905807,0.00019873,2]
[349166459,1737001857536,-2500.0,0.00019882,2]
[349166460,1737001857545,-2500.0,0.00019891,2]
[349166461,1737001857555,-2500.0,0.000199,2]
[349166462,1737001857564,-157.80471725,0.000199,2]
[349166463,1737001857574,-155.62051,0.000199,2]
[349166464,1737001857583,-4920.32183807,0.000199,2]
[349166465,1737001857593,-7429.25153714,0.00019998,2]
[349166466,1737001857603,-206190.52980779,0.0002,5]
[349166467,1737001857625,-11508.4936187,0.0002,5]
[349166468,1737001859241,-44.39655785,0.0002,5]
[349166469,1737001993752,1500.0,0.00025,120]
[349166470,1737002006972,1508.7,0.00025,120]
[349166471,1737002033747,160.532133,0.00013973,2]
[349166472,1737002173422,32035.10155473,0.0002,120]
[349166529,1737003032151,-406.271099,0.00018176,2]
[349166547,1737003032308,-56.969001,0.00018176,2]
[349166550,1737003032324,-5801.933324,0.00018176,2]
[349166552,1737003032335,-5517.94620339,0.00018176,2]
[349166554,1737003032347,-710.17380002,0.00018176,2]
[349166556,1737003032359,-965.87530349,0.00018176,2]
[349166558,1737003032371,-331.7748344,0.00018178,2]
[349166561,1737003032381,-241.5423148,0.000189,2]
[349166563,1737003032391,-540.649,0.00019,2]
[349166565,1737003032401,-276.995613,0.00019,5]
[349166567,1737003032410,-187.17305046,0.00019078,2]
[349166569,1737003032419,-465.8985421,0.00019177,2]
[349167099,1737003038095,-33.1014579,0.00019177,2]
[349167101,1737003038104,-300.0,0.00019177,2]
[349167103,1737003038114,-331.1117856,0.00019177,2]
[349167105,1737003038124,-628.3,0.00019178,2]
[349167107,1737003038135,-500.0,0.00019178,2]
[349167109,1737003038143,-500.0,0.00019178,2]
[349167111,1737003038153,-500.0,0.00019178,2]
[349167113,1737003038163,-580.45,0.00019178,2]
[349167115,1737003038172,-500.0,0.00019178,2]
[349167117,1737003038182,-500.0,0.00019178,2]
[349167119,1737003038192,-500.0,0.00019178,2]
[349167122,1737003038202,-500.0,0.00019178,2]
[349167124,1737003038211,-500.0,0.00019178,2]
[349167126,1737003038221,-500.0,0.00019178,2]
[349167128,1737003038232,-500.0,0.00019178,2]
[349167130,1737003038242,-500.0,0.00019178,7]
[349167132,1737003038251,-500.0,0.00019178,2]
[349167134,1737003038262,-500.0,0.00019178,2]
[349167136,1737003038271,-500.0,0.00019178,2]
[349167138,1737003038281,-500.0,0.00019178,2]
[349167140,1737003038291,-500.0,0.00019178,2]
[349167142,1737003038300,-621.49,0.00019178,2]
[349167144,1737003038310,-500.0,0.00019178,2]
[349167146,1737003038322,-530.86,0.00019178,2]
[349167148,1737003038332,-621.23,0.00019178,2]
[349167150,1737003038342,-500.0,0.00019178,2]
[349167152,1737003038352,-500.0,0.00019178,2]
[349167154,1737003038362,-500.0,0.00019178,2]
[349167156,1737003038371,-500.0,0.00019178,2]
[349167158,1737003038381,-500.0,0.00019178,2]
[349167160,1737003038391,-500.0,0.00019178,2]
[349167162,1737003038401,-500.0,0.00019178,2]
[349167164,1737003038411,-500.0,0.00019178,2]
[349167166,1737003038420,-437.23220082,0.00019178,2]
[349167168,1737003038431,-500.0,0.00019178,2]
[349167170,1737003038440,-500.0,0.00019178,2]
[349167172,1737003038450,-500.0,0.00019178,2]
[349167174,1737003038460,-189.3229492,0.00019178,2]
[349167176,1737003038470,-500.0,0.00019178,2]
[349167177,1737003038480,-500.0,0.00019178,2]
[349167179,1737003038489,-500.0,0.00019178,2]
[349167181,1737003038500,-500.0,0.00019178,2]
[349167183,1737003038509,-500.0,0.00019178,2]
[349167185,1737003038519,-500.0,0.00019178,2]
[349167187,1737003038529,-961.04,0.00019178,2]
[349167190,1737003038540,-603.17,0.00019178,2]
[349167192,1737003038549,-500.0,0.00019178,2]
[349167194,1737003038559,-500.0,0.00019178,2]
[349167196,1737003038569,-500.0,0.00019178,2]
[349167198,1737003038579,-500.0,0.00019178,2]
[349167200,1737003038588,-308.99648245,0.00019178,2]
[349167202,1737003038598,-1230.85,0.00019178,2]
[349167204,1737003038607,-500.0,0.00019178,2]
[349167206,1737003038615,-500.0,0.00019178,2]
[349167208,1737003038625,-500.0,0.00019178,2]
[349167210,1737003038636,-500.0,0.00019178,2]
[349167212,1737003038646,-901.36,0.00019178,2]
[349167214,1737003038655,-536.69,0.00019178,2]
[349167216,1737003038664,-500.0,0.00019178,2]
[349167218,1737003038674,-215.60838217,0.00019178,2]
[349167220,1737003038683,-500.0,0.00019178,2]
[349167222,1737003038694,-500.0,0.00019178,2]
[349167224,1737003038703,-752.14,0.00019178,2]
[349167226,1737003038712,-1139.41,0.00019178,2]
[349167228,1737003038722,-500.0,0.00019178,2]
[349167230,1737003038731,-668.72,0.00019178,2]
[349167232,1737003038740,-500.0,0.00019178,2]
[349167234,1737003038750,-653.41,0.00019178,2]
[349167236,1737003038759,-395.27761335,0.00019178,2]
[349167684,1737003192849,160.937581,0.00013973,2]
[349167685,1737003508379,500.0,0.00025,120]
[349167686,1737003783899,1517.94,0.00025,120]
[349167744,1737004232412,-300.0,0.00018152,2]
[349167746,1737004232422,-24900.0,0.00018153,2]
[349167748,1737004232431,-406.271099,0.00018245,2]
[349167750,1737004232441,-518.403,0.00019,2]
[349167752,1737004232451,-176.39408501,0.00019078,2]
[349167754,1737004232461,-500.0,0.00019173,2]
[349167756,1737004232471,-499.0,0.00019177,2]
[349167758,1737004232481,-162.3196264,0.00019177,2]
[349167760,1737004232491,-359.68125481,0.00019177,2]
[349167762,1737004232501,-500.0,0.00019178,2]
[349167764,1737004232510,-500.0,0.00019178,2]
[349167766,1737004232520,-501.41306865,0.00019178,2]
[349167768,1737004232529,-500.0,0.00019178,2]
[349167770,1737004232539,-329.51976572,0.00019178,2]
[349167773,1737004232551,-170.48023428,0.00019178,2]
[349167774,1737004232560,-500.0,0.00019178,2]
[349167776,1737004232570,-500.0,0.00019178,2]
[349167779,1737004232580,-257.65891339,0.00019178,2]
[349167781,1737004232592,-162.51973547,0.00019178,2]
[349167783,1737004232602,-205.2648102,0.00019178,2]
[349168749,1737004243598,-294.7351898,0.00019178,2]
[349168750,1737004243608,-500.0,0.00019178,2]
[349168751,1737004243619,-500.0,0.00019178,2]
[349168752,1737004243628,-500.0,0.00019178,2]
[349168753,1737004243638,-500.0,0.00019178,2]
[349168754,1737004243648,-500.0,0.00019178,2]
[349168755,1737004243658,-500.0,0.00019178,2]
[349168756,1737004243668,-726.29,0.00019178,2]
[349168757,1737004243677,-500.0,0.00019178,2]
[349168758,1737004243686,-542.59,0.00019178,2]
[349168759,1737004243696,-500.0,0.00019178,2]
[349168760,1737004243706,-500.0,0.00019178,2]
[349168761,1737004243718,-500.0,0.00019178,2]
[349168762,1737004243728,-500.0,0.00019178,2]
[349168763,1737004243738,-501.24584189,0.00019178,2]
[349168764,1737004243748,-500.0,0.00019178,2]
[349168765,1737004243759,-519.68,0.00019178,2]
[349168766,1737004243768,-500.0,0.00019178,2]
[349168767,1737004243778,-500.0,0.00019178,2]
[349168768,1737004243789,-500.0,0.00019178,2]
[349168769,1737004243800,-500.0,0.00019178,2]
[349168770,1737004243810,-492.87843123,0.00019178,2]
[349168771,1737004243820,-500.0,0.00019178,2]
[349168772,1737004243830,-500.0,0.00019178,2]
[349168773,1737004243840,-500.0,0.00019178,2]
[349168774,1737004243850,-500.0,0.00019178,2]
[349168775,1737004243860,-598.87,0.00019178,2]
[349168776,1737004243871,-500.0,0.00019178,2]
[349168777,1737004243881,-500.0,0.00019178,2]
[349168778,1737004243891,-500.0,0.00019178,2]
[349168779,1737004243901,-500.0,0.00019178,2]
[349168780,1737004243911,-500.0,0.00019178,2]
[349168781,1737004243921,-500.0,0.00019178,2]
[349168782,1737004243930,-654.7,0.00019178,2]
[349168783,1737004243940,-920.99,0.00019178,2]
[349168784,1737004243949,-500.0,0.00019178,2]
[349168785,1737004243958,-477.66547737,0.00019178,2]
[349168786,1737004243968,-884.64,0.00019178,2]
[349168787,1737004243977,-507.72279973,0.00019178,2]
[349168788,1737004243987,-1202.01,0.00019178,2]
[349168789,1737004243996,-500.0,0.00019178,2]
[349168790,1737004244006,-500.0,0.00019178,2]
[349168791,1737004244015,-620.77,0.00019178,2]
[349168792,1737004244025,-500.0,0.00019178,2]
[349168793,1737004244034,-1112.77,0.00019178,2]
[349168794,1737004244043,-500.0,0.00019178,2]
[349168795,1737004244053,-535.16,0.00019178,2]
[349168796,1737004244062,-647.02,0.00019178,2]
[349168797,1737004244072,-720.81,0.00019178,2]
[349168798,1737004244081,-500.0,0.00019178,2]
[349168799,1737004244091,-640.86,0.00019178,2]
[349168800,1737004244101,-500.0,0.00019178,2]
[349168801,1737004244110,-500.0,0.00019178,2]
[349168802,1737004244121,-500.0,0.00019178,2]
[349168803,1737004244130,-500.0,0.00019178,2]
[349168804,1737004244139,-508.62,0.00019178,2]
[349168805,1737004244149,-500.38,0.00019178,2]
[349168806,1737004244158,-500.0,0.00019178,2]
[349168807,1737004244168,-500.0,0.00019178,2]
[349168808,1737004244177,-1340.97,0.00019178,2]
[349168809,1737004244187,-500.0,0.00019178,2]
[349168810,1737004244196,-671.57,0.00019178,2]
[349168811,1737004244206,-500.0,0.00019178,2]
[349168812,1737004244215,-500.0,0.00019178,2]
[349168813,1737004244225,-500.0,0.00019178,2]
[349168814,1737004244234,-500.0,0.00019178,2]
[349168815,1737004244243,-500.0,0.00019178,2]
[349168816,1737004244252,-500.0,0.00019178,2]
[349168817,1737004244262,-500.0,0.00019178,2]
[349168818,1737004244271,-500.0,0.00019178,2]
[349168819,1737004244280,-801.05,0.00019178,2]
[349168820,1737004244290,-500.0,0.00019178,2]
[349168821,1737004244299,-549.25,0.00019178,2]
[349168822,1737004244309,-500.0,0.00019178,2]
[349168823,1737004244319,-1190.19,0.00019178,2]
[349168824,1737004244328,-500.0,0.00019178,2]
[349168825,1737004244337,-500.0,0.00019178,2]
[349168826,1737004244347,-224.40023881,0.00019178,2]
[349168827,1737004244356,-500.0,0.00019178,2]
[349168828,1737004244366,-500.0,0.00019178,2]
[349168829,1737004244377,-112.21422117,0.00019178,2]
[349168845,1737004246806,-355.4,0.00019177,2]
[349168893,1737004337909,161.300299,0.00013973,2]
[349169005,1737005432553,-157.0,0.00018,2]
[349169007,1737005432565,-400.6938843,0.00018025,2]
[349169601,1737005438370,-58.240599,0.00018025,2]
[349169603,1737005438380,-460.220113,0.00018151,2]
[349169605,1737005438390,-209.27586887,0.000188,2]
[349169607,1737005438400,-161.02820987,0.000189,2]
[349169609,1737005438410,-300.0,0.00018999,2]
[349169611,1737005438420,-2285.0,0.00018999,2]
[349169613,1737005438429,-4074.58167497,0.00019,12]
[349169615,1737005438441,-536.895,0.00019,2]
[349169617,1737005438451,-1455.11,0.00019,2]
[349169619,1737005438461,-8000.0,0.00019,2]
[349169621,1737005438471,-154.00414,0.00019,2]
[349169623,1737005438481,-153.5717534,0.00019,2]
[349169625,1737005438491,-338.3049288,0.00019,2]
[349169627,1737005438500,-155.2874936,0.00019,2]
[349169629,1737005438510,-352.3678893,0.00019,2]
[349169631,1737005438520,-302.7566616,0.00019,2]
[349169633,1737005438529,-500.0,0.00019173,2]
[349169635,1737005438538,-152.42,0.00019175,2]
[349169637,1737005438548,-27619.28779658,0.00019176,2]
[349169639,1737005438557,-158.96,0.00019177,2]
[349169641,1737005438567,-200.0,0.00019177,2]
[349169643,1737005438576,-499.0,0.00019177,2]
[349169645,1737005438586,-144.6,0.00019177,2]
[349169647,1737005438596,-300.14790039,0.00019177,2]
[349169649,1737005438606,-500.0,0.00019177,2]
[349169651,1737005438615,-500.0,0.00019177,2]
[349169653,1737005438625,-500.0,0.00019177,2]
[349169655,1737005438635,-500.0,0.00019177,2]
[349169657,1737005438644,-567.93736345,0.00019177,2]
[349169659,1737005438653,-500.0,0.00019177,2]
[349169661,1737005438663,-308.13161401,0.00019177,2]
[349169663,1737005438672,-500.0,0.00019177,2]
[349169665,1737005438682,-411.32042842,0.00019177,2]
[349169667,1737005438693,-500.0,0.00019177,2]
[349169669,1737005438702,-500.0,0.00019177,2]
[349169671,1737005438712,-500.0,0.00019177,2]
[349169673,1737005438721,-217.44993648,0.00019177,2]
[349169675,1737005438731,-502.7472967,0.00019177,2]
[349169677,1737005438740,-499.99999999,0.00019177,2]
[349169679,1737005438750,-500.0,0.00019177,2]
[349169681,1737005438759,-607.00114723,0.00019177,2]
[349169683,1737005438769,-500.0,0.00019177,2]
[349169685,1737005438778,-500.0,0.00019177,2]
[349169687,1737005438787,-500.0,0.00019177,2]
[349169689,1737005438797,-500.0,0.00019177,2]
[349169691,1737005438806,-436.94884366,0.00019177,2]
[349169693,1737005438816,-500.0,0.00019177,2]
[349169695,1737005438826,-310.95080167,0.00019177,2]
[349169697,1737005438836,-223.57417304,0.00019177,2]
[349169699,1737005438846,-500.0,0.00019178,2]
[349169701,1737005438856,-500.0,0.00019178,2]
[349169704,1737005438865,-500.0,0.00019178,2]
[349169706,1737005438876,-500.0,0.00019178,2]
[349169708,1737005438886,-670.14,0.00019178,2]
[349169709,1737005438896,-500.0,0.00019178,2]
[349169712,1737005438906,-500.0,0.00019178,2]
[349169714,1737005438915,-169.17797823,0.00019178,2]
[349169716,1737005438925,-500.0,0.00019178,2]
[349169718,1737005438935,-500.0,0.00019178,2]
[349169720,1737005438945,-533.5,0.00019178,2]
[349169722,1737005438955,-500.0,0.00019178,2]
[349169723,1737005438964,-500.0,0.00019178,2]
[349169725,1737005438974,-500.0,0.00019178,2]
[349169728,1737005438984,-500.0,0.00019178,2]
[349169730,1737005438995,-500.0,0.00019178,2]
[349169732,1737005439004,-500.0,0.00019178,2]
[349169734,1737005439014,-500.0,0.00019178,2]
[349169736,1737005439024,-500.0,0.00019178,2]
[349169738,1737005439034,-501.44431121,0.00019178,2]
[349169740,1737005439044,-500.0,0.00019178,2]
[349169742,1737005439054,-500.0,0.00019178,2]
[349169744,1737005439066,-500.0,0.00019178,2]
[349169745,1737005439077,-500.0,0.00019178,2]
[349169747,1737005439087,-500.0,0.00019178,2]
[349169749,1737005439097,-500.0,0.00019178,2]
[349169751,1737005439107,-500.0,0.00019178,2]
[349169753,1737005439118,-500.0,0.00019178,2]
[349169755,1737005439128,-602.12,0.00019178,2]
[349169756,1737005439139,-500.0,0.00019178,2]
[349169758,1737005439151,-246.93040365,0.00019178,2]
[349169760,1737005439160,-500.0,0.00019178,2]
[349169762,1737005439170,-500.0,0.00019178,2]
[349169764,1737005439180,-500.0,0.00019178,2]
[349169766,1737005439191,-500.0,0.00019178,2]
[349169768,1737005439201,-500.0,0.00019178,2]
[349169770,1737005439212,-924.29,0.00019178,2]
[349169772,1737005439221,-603.46,0.00019178,2]
[349169774,1737005439231,-500.0,0.00019178,2]
[349169775,1737005439242,-1193.59,0.00019178,2]
[349169777,1737005439252,-500.0,0.00019178,2]
[349169779,1737005439262,-500.0,0.00019178,2]
[349169781,1737005439272,-910.28,0.00019178,2]
[349169783,1737005439281,-582.34,0.00019178,2]
[349169785,1737005439290,-500.0,0.00019178,2]
[349169786,1737005439300,-500.0,0.00019178,2]
[349169788,1737005439309,-732.44,0.00019178,2]
[349169790,1737005439319,-500.0,0.00019178,2]
[349169791,1737005439328,-500.0,0.00019178,2]
[349169792,1737005439337,-1128.91,0.00019178,2]
[349169793,1737005439347,-566.49042879,0.00019178,2]
[349169794,1737005439357,-677.84,0.00019178,2]
[349169795,1737005439367,-500.0,0.00019178,2]
[349169796,1737005439376,-655.82,0.00019178,2]
[349169797,1737005439386,-1347.6,0.00019178,2]
[349169798,1737005439396,-356.64929118,0.00019178,2]
[349169799,1737005439405,-636.57,0.00019178,2]
[349169800,1737005439415,-500.0,0.00019178,2]
[349169801,1737005439424,-614.77392378,0.00019178,2]
[349169802,1737005439433,-500.0,0.00019178,2]
[349169803,1737005439444,-500.0,0.00019178,2]
[349169804,1737005439454,-500.0,0.00019178,2]
[349169805,1737005439464,-500.0,0.00019178,2]
[349169806,1737005439473,-511.4,0.00019178,2]
[349169807,1737005439483,-500.0,0.00019178,7]
[349169808,1737005439493,-506.43056002,0.00019178,2]
[349169809,1737005439502,-511.59644601,0.00019178,2]
[349169810,1737005439512,-685.26,0.00019178,2]
[349169811,1737005439523,-500.0,0.00019178,2]
[349169812,1737005439533,-500.0,0.00019178,2]
[349169813,1737005439542,-500.0,0.00019178,2]
[349169814,1737005439552,-809.34,0.00019178,2]
[349169816,1737005439562,-500.0,0.00019178,2]
[349169818,1737005439573,-500.0,0.00019178,2]
[349169820,1737005439582,-274.6043201,0.00019178,2]
[349169822,1737005439592,-500.0,0.00019178,2]
[349169823,1737005439602,-500.0,0.00019178,2]
[349169825,1737005439611,-568.03,0.00019178,2]
[349169827,1737005439620,-658.1,0.00019178,2]
[349169829,1737005439630,-500.0,0.00019178,2]
[349169831,1737005439639,-1182.26,0.00019178,2]
[349169833,1737005439648,-500.0,0.00019178,2]
[349169834,1737005439658,-535.87,0.00019178,2]
[349169836,1737005439668,-788.45,0.00019178,2]
[349169838,1737005439677,-500.0,0.00019178,2]